[Event "Titled Tuesday Blitz August 09 Early 2022"]
[White "Boyer, Mahel"]
[Black "Omelja, Artem"]
[WhiteFideId "45102422"]
[BlackFideId "14119846"]
[WhiteElo "2454"]
[BlackElo "2382"]
[Result "0-1"]
[Round "06"]
[TimeControl "180+1"]
[Date "2022.08.09"]
[WhiteClock "0:00:08"]
[BlackClock "0:00:02"]

1. e4 {[%clk 0:02:57]}  c5 {[%clk 0:02:59]} 2. Nf3 {[%clk 0:02:53]}  e6 {[%clk 0:02:56]} 3. b3 {[%clk 0:02:47]}  d5 {[%clk 0:02:47]} 4. Bb2 {[%clk 0:02:42]}  dxe4 {[%clk 0:02:41]} 5. Ne5 {[%clk 0:02:42]}  Nf6 {[%clk 0:02:39]} 6. Bb5+ {[%clk 0:02:40]}  Bd7 {[%clk 0:02:39]} 7. Qe2 {[%clk 0:02:39]}  a6 {[%clk 0:02:33]} 8. Nxd7 {[%clk 0:02:25]}  Nbxd7 {[%clk 0:02:26]} 9. Bxf6 {[%clk 0:02:22]}  gxf6 {[%clk 0:02:21]} 10. Bxd7+ {[%clk 0:02:23]}  Qxd7 {[%clk 0:02:21]} 11. Qxe4 {[%clk 0:02:23]}  f5 {[%clk 0:02:21]} 12. Qe5 {[%clk 0:02:19]}  Rg8 {[%clk 0:02:20]} 13. Nc3 {[%clk 0:02:19]}  Bg7 {[%clk 0:02:10]} 14. Qxc5 {[%clk 0:02:19]}  Rc8 {[%clk 0:02:01]} 15. Qb4 {[%clk 0:02:00]}  Bxc3 {[%clk 0:01:47]} 16. dxc3 {[%clk 0:02:01]}  Rxg2 {[%clk 0:01:46]} 17. Kf1 {[%clk 0:01:17]}  Rg4 {[%clk 0:01:25]} 18. c4 {[%clk 0:01:11]}  Qd4 {[%clk 0:00:49]} 19. Qe1 {[%clk 0:00:33]}  Re4 {[%clk 0:00:23]} 20. Qd1 {[%clk 0:00:18]}  Qe5 {[%clk 0:00:23]} 21. Rg1 {[%clk 0:00:16]}  Ke7 {[%clk 0:00:21]} 22. Rg3 {[%clk 0:00:10]}  Rd8 {[%clk 0:00:14]} 23. Rd3 {[%clk 0:00:10]}  Qxh2 {[%clk 0:00:09]} 24. Qf3 {[%clk 0:00:07]}  Rxd3 {[%clk 0:00:02]} 25. cxd3 {[%clk 0:00:07]}  Re5 {[%clk 0:00:03]} 26. Re1 {[%clk 0:00:05]}  Rxe1+ {[%clk 0:00:02]} 27. Kxe1 {[%clk 0:00:06]}  Qe5+ {[%clk 0:00:03]} 28. Kf1 {[%clk 0:00:05]}  Qc7 {[%clk 0:00:03]} 29. d4 {[%clk 0:00:05]}  Qd7 {[%clk 0:00:03]} 30. Qf4 {[%clk 0:00:05]}  b5 {[%clk 0:00:02]} 31. Qh4+ {[%clk 0:00:05]}  Ke8 {[%clk 0:00:01]} 32. Qf6 {[%clk 0:00:06]}  Qe7 {[%clk 0:00:01]} 33. Qh8+ {[%clk 0:00:06]}  Kd7 {[%clk 0:00:02]} 34. Qxh7 {[%clk 0:00:07]}  bxc4 {[%clk 0:00:02]} 35. bxc4 {[%clk 0:00:07]}  Kc6 {[%clk 0:00:02]} 36. Qh1+ {[%clk 0:00:07]}  Kc7 {[%clk 0:00:03]} 37. Qh2+ {[%clk 0:00:07]}  Kb7 {[%clk 0:00:03]} 38. Qe5 {[%clk 0:00:07]}  Qd7 {[%clk 0:00:02]} 39. Qc5 {[%clk 0:00:07]}  Qc7 {[%clk 0:00:02]} 40. Qb4+ {[%clk 0:00:07]}  Qb6 {[%clk 0:00:03]} 41. Qc3 {[%clk 0:00:06]}  Kc7 {[%clk 0:00:02]} 42. d5 {[%clk 0:00:05]}  Qc5 {[%clk 0:00:01]} 43. Qe5+ {[%clk 0:00:05]}  Qd6 {[%clk 0:00:02]} 44. Qd4 {[%clk 0:00:06]}  exd5 {[%clk 0:00:02]} 45. cxd5 {[%clk 0:00:06]}  f6 {[%clk 0:00:03]} 46. Qa7+ {[%clk 0:00:06]}  Kd8 {[%clk 0:00:03]} 47. Qf7 {[%clk 0:00:06]}  Qe5 {[%clk 0:00:01]} 48. Qg8+ {[%clk 0:00:06]}  Kd7 {[%clk 0:00:02]} 49. Qf7+ {[%clk 0:00:07]}  Kd6 {[%clk 0:00:02]} 50. Qa7 {[%clk 0:00:08]}  Kxd5 {[%clk 0:00:02]} 51. Qxa6 {[%clk 0:00:08]}  Ke4 {[%clk 0:00:03]} 52. Qe2+ {[%clk 0:00:08]}  Kf4 {[%clk 0:00:02]} 53. Qxe5+ {[%clk 0:00:07]}  fxe5 {[%clk 0:00:03]} 54. a4 {[%clk 0:00:08]}  Ke4 {[%clk 0:00:03]} 55. Ke2 {[%clk 0:00:05]}  Kd4 {[%clk 0:00:04]} 56. a5 {[%clk 0:00:04]}  Kc5 {[%clk 0:00:04]} 57. Kd3 {[%clk 0:00:05]}  Kb5 {[%clk 0:00:04]} 58. a6 {[%clk 0:00:06]}  Kxa6 {[%clk 0:00:04]} 59. Kc4 {[%clk 0:00:07]}  e4 {[%clk 0:00:01]} 60. Kd5 {[%clk 0:00:08]}  Kb5 {[%clk 0:00:02]} 61. Ke5 {[%clk 0:00:08]}  Kc4 {[%clk 0:00:02]} 62. Kxf5 {[%clk 0:00:07]}  Kd3 {[%clk 0:00:03]} 63. Kf4 {[%clk 0:00:07]}  Ke2 {[%clk 0:00:02]} 64. Kg3 {[%clk 0:00:08]}  e3 {[%clk 0:00:02]} 65. Kg2 {[%clk 0:00:09]}  exf2 {[%clk 0:00:02]} 66. Kg3 {[%clk 0:00:05]}  f1=Q {[%clk 0:00:03]} 67. Kh2 {[%clk 0:00:06]}  Qf7 {[%clk 0:00:01]} 68. Kh1 {[%clk 0:00:06]}  Qg6 {[%clk 0:00:01]} 69. Kh2 {[%clk 0:00:07]}  Kf2 {[%clk 0:00:02]} 70. Kh3 {[%clk 0:00:08]}  Qh5# {[%clk 0:00:02]} 0-1


[Site "https://www.chess.com"]

[Event "Titled Tuesday Blitz August 09 Early 2022"]
[White "Bristy, Mukherjee"]
[Black "Ferreira, Vitor Hugo Vieira"]
[WhiteFideId "25077325"]
[BlackFideId "2119765"]
[WhiteElo "1661"]
[BlackElo "2168"]
[Result "1-0"]
[Round "06"]
[TimeControl "180+1"]
[Date "2022.08.09"]
[WhiteClock "0:00:08"]
[BlackClock "0:00:02"]

1. d4 {[%clk 0:03:00]}  d5 {[%clk 0:02:54]} 2. c3 {[%clk 0:03:00]}  Nf6 {[%clk 0:02:53]} 3. Bg5 {[%clk 0:03:00]}  Nbd7 {[%clk 0:02:52]} 4. Nd2 {[%clk 0:02:54]}  e6 {[%clk 0:02:51]} 5. e3 {[%clk 0:02:51]}  b6 {[%clk 0:02:49]} 6. f4 {[%clk 0:02:49]}  Bb7 {[%clk 0:02:49]} 7. Bd3 {[%clk 0:02:48]}  h6 {[%clk 0:02:49]} 8. Bh4 {[%clk 0:02:48]}  g5 {[%clk 0:02:49]} 9. Bg3 {[%clk 0:02:42]}  Ne4 {[%clk 0:02:44]} 10. Ngf3 {[%clk 0:02:24]}  Nxg3 {[%clk 0:02:41]} 11. hxg3 {[%clk 0:02:24]}  Bg7 {[%clk 0:02:29]} 12. Ne5 {[%clk 0:02:23]}  Nxe5 {[%clk 0:02:27]} 13. fxe5 {[%clk 0:02:21]}  Qe7 {[%clk 0:02:23]} 14. Qa4+ {[%clk 0:02:18]}  Qd7 {[%clk 0:02:20]} 15. Qxd7+ {[%clk 0:02:09]}  Kxd7 {[%clk 0:02:20]} 16. O-O {[%clk 0:02:10]}  Raf8 {[%clk 0:02:19]} 17. e4 {[%clk 0:02:07]}  f6 {[%clk 0:02:19]} 18. exf6 {[%clk 0:02:06]}  Bxf6 {[%clk 0:02:18]} 19. exd5 {[%clk 0:01:48]}  exd5 {[%clk 0:02:14]} 20. Bf5+ {[%clk 0:01:43]}  Kd6 {[%clk 0:02:13]} 21. Rae1 {[%clk 0:01:44]}  Re8 {[%clk 0:02:12]} 22. Bg6 {[%clk 0:01:43]}  Rxe1 {[%clk 0:02:08]} 23. Rxe1 {[%clk 0:01:44]}  c5 {[%clk 0:02:06]} 24. dxc5+ {[%clk 0:01:39]}  bxc5 {[%clk 0:02:06]} 25. Bf5 {[%clk 0:01:38]}  Bc8 {[%clk 0:02:05]} 26. Rf1 {[%clk 0:01:32]}  Be5 {[%clk 0:02:02]} 27. Bxc8 {[%clk 0:01:18]}  Rxc8 {[%clk 0:02:01]} 28. Kh2 {[%clk 0:01:19]}  h5 {[%clk 0:02:00]} 29. Nf3 {[%clk 0:01:15]}  Rf8 {[%clk 0:01:59]} 30. Re1 {[%clk 0:01:11]}  Bf6 {[%clk 0:01:51]} 31. Re2 {[%clk 0:01:08]}  d4 {[%clk 0:01:49]} 32. Nd2 {[%clk 0:01:00]}  Bd8 {[%clk 0:01:17]} 33. Kg1 {[%clk 0:00:46]}  dxc3 {[%clk 0:01:07]} 34. bxc3 {[%clk 0:00:45]}  Kc6 {[%clk 0:01:02]} 35. c4 {[%clk 0:00:44]}  Bf6 {[%clk 0:01:01]} 36. Re6+ {[%clk 0:00:33]}  Kb7 {[%clk 0:00:57]} 37. Nb3 {[%clk 0:00:31]}  Kc7 {[%clk 0:00:43]} 38. Ra6 {[%clk 0:00:21]}  Kb8 {[%clk 0:00:43]} 39. Kh2 {[%clk 0:00:11]}  Be5 {[%clk 0:00:43]} 40. Nxc5 {[%clk 0:00:09]}  Rf7 {[%clk 0:00:35]} 41. Re6 {[%clk 0:00:07]}  Bg7 {[%clk 0:00:21]} 42. Re8+ {[%clk 0:00:03]}  Kc7 {[%clk 0:00:20]} 43. Ne6+ {[%clk 0:00:04]}  Kd7 {[%clk 0:00:20]} 44. Nxg7 {[%clk 0:00:04]}  Rxg7 {[%clk 0:00:21]} 45. Re5 {[%clk 0:00:04]}  Kd6 {[%clk 0:00:20]} 46. Rd5+ {[%clk 0:00:04]}  Kc6 {[%clk 0:00:20]} 47. Kg1 {[%clk 0:00:05]}  h4 {[%clk 0:00:18]} 48. gxh4 {[%clk 0:00:04]}  gxh4 {[%clk 0:00:19]} 49. Kh2 {[%clk 0:00:05]}  Rg4 {[%clk 0:00:20]} 50. Ra5 {[%clk 0:00:04]}  Kb6 {[%clk 0:00:18]} 51. Ra4 {[%clk 0:00:04]}  a5 {[%clk 0:00:16]} 52. c5+ {[%clk 0:00:03]}  Kb5 {[%clk 0:00:17]} 53. Rxg4 {[%clk 0:00:04]}  h3 {[%clk 0:00:17]} 54. gxh3 {[%clk 0:00:03]}  a4 {[%clk 0:00:18]} 55. h4 {[%clk 0:00:04]}  Kc6 {[%clk 0:00:19]} 56. Kh3 {[%clk 0:00:05]}  a3 {[%clk 0:00:20]} 57. h5 {[%clk 0:00:05]}  Kd5 {[%clk 0:00:21]} 58. h6 {[%clk 0:00:06]}  Ke5 {[%clk 0:00:21]} 59. h7 {[%clk 0:00:07]}  Kf6 {[%clk 0:00:22]} 60. h8=Q+ {[%clk 0:00:08]}  Kf5 {[%clk 0:00:02]} 61. Qh5+ {[%clk 0:00:08]}  Ke6 {[%clk 0:00:02]} 62. Rg6+ {[%clk 0:00:08]} 1-0


[Site "https://www.chess.com"]

[Event "Titled Tuesday Blitz August 09 Early 2022"]
[White "Bryakin, Mikhail"]
[Black "Aldokhin, Ivan"]
[WhiteFideId "4165314"]
[BlackFideId "24115720"]
[WhiteElo "2784"]
[BlackElo "2630"]
[Result "1-0"]
[Round "06"]
[TimeControl "180+1"]
[Date "2022.08.09"]
[WhiteClock "0:02:37"]
[BlackClock "0:00:55"]

1. Nf3 {[%clk 0:02:56]}  Nf6 {[%clk 0:02:59]} 2. g3 {[%clk 0:02:55]}  g6 {[%clk 0:03:00]} 3. Bg2 {[%clk 0:02:55]}  Bg7 {[%clk 0:03:01]} 4. O-O {[%clk 0:02:56]}  O-O {[%clk 0:03:01]} 5. b3 {[%clk 0:02:55]}  d6 {[%clk 0:03:01]} 6. Bb2 {[%clk 0:02:56]}  a5 {[%clk 0:03:02]} 7. a4 {[%clk 0:02:56]}  e5 {[%clk 0:03:01]} 8. d3 {[%clk 0:02:56]}  Nc6 {[%clk 0:02:57]} 9. Nbd2 {[%clk 0:02:56]}  Bd7 {[%clk 0:02:39]} 10. e4 {[%clk 0:02:56]}  Qc8 {[%clk 0:02:39]} 11. Nc4 {[%clk 0:02:55]}  Bh3 {[%clk 0:02:39]} 12. Ne3 {[%clk 0:02:55]}  Bxg2 {[%clk 0:02:38]} 13. Kxg2 {[%clk 0:02:56]}  Qd7 {[%clk 0:02:17]} 14. h3 {[%clk 0:02:55]}  Rae8 {[%clk 0:02:16]} 15. Re1 {[%clk 0:02:53]}  d5 {[%clk 0:02:13]} 16. Nd2 {[%clk 0:02:48]}  d4 {[%clk 0:02:04]} 17. Nec4 {[%clk 0:02:46]}  Nh5 {[%clk 0:02:03]} 18. Ba3 {[%clk 0:02:45]}  Ne7 {[%clk 0:01:38]} 19. Nf3 {[%clk 0:02:44]}  f6 {[%clk 0:01:19]} 20. Nxa5 {[%clk 0:02:43]}  Rf7 {[%clk 0:01:19]} 21. Nxb7 {[%clk 0:02:41]}  Nc6 {[%clk 0:01:13]} 22. Nc5 {[%clk 0:02:37]}  Qc8 {[%clk 0:01:12]} 23. b4 {[%clk 0:02:37]}  h6 {[%clk 0:01:05]} 24. b5 {[%clk 0:02:37]}  Nd8 {[%clk 0:01:00]} 25. Nh4 {[%clk 0:02:38]}  Kh7 {[%clk 0:00:55]} 26. Qg4 {[%clk 0:02:37]} 1-0


[Site "https://www.chess.com"]

[Event "Titled Tuesday Blitz August 09 Early 2022"]
[White "Butti, Enrique"]
[Black "Adury, Anant"]
[WhiteFideId "3700470"]
[BlackFideId "30964687"]
[WhiteElo "2080"]
[BlackElo "2327"]
[Result "1/2-1/2"]
[Round "06"]
[TimeControl "180+1"]
[Date "2022.08.09"]
[WhiteClock "0:01:55"]
[BlackClock "0:02:40"]

1. d4 {[%clk 0:02:59]}  d6 {[%clk 0:03:00]} 2. e4 {[%clk 0:02:57]}  e5 {[%clk 0:03:01]} 3. Nf3 {[%clk 0:02:52]}  Nd7 {[%clk 0:02:58]} 4. Bc4 {[%clk 0:02:49]}  Ngf6 {[%clk 0:02:58]} 5. Ng5 {[%clk 0:02:41]}  d5 {[%clk 0:02:56]} 6. exd5 {[%clk 0:02:39]}  Nb6 {[%clk 0:02:55]} 7. dxe5 {[%clk 0:02:31]}  Nxc4 {[%clk 0:02:54]} 8. exf6 {[%clk 0:02:29]}  Qxf6 {[%clk 0:02:54]} 9. O-O {[%clk 0:02:27]}  Be7 {[%clk 0:02:52]} 10. Nc3 {[%clk 0:02:25]}  O-O {[%clk 0:02:52]} 11. Nge4 {[%clk 0:02:21]}  Qg6 {[%clk 0:02:50]} 12. b3 {[%clk 0:02:17]}  Nd6 {[%clk 0:02:50]} 13. Nxd6 {[%clk 0:02:12]}  Bxd6 {[%clk 0:02:50]} 14. Re1 {[%clk 0:02:09]}  Bf5 {[%clk 0:02:49]} 15. Bb2 {[%clk 0:02:06]}  Bxc2 {[%clk 0:02:49]} 16. Qd4 {[%clk 0:02:04]}  Qd3 {[%clk 0:02:47]} 17. Qg4 {[%clk 0:02:01]}  Qg6 {[%clk 0:02:42]} 18. Qd4 {[%clk 0:01:58]}  Qd3 {[%clk 0:02:40]} 19. Qg4 {[%clk 0:01:56]}  Qg6 {[%clk 0:02:40]} 20. Qd4 {[%clk 0:01:55]} 1/2-1/2


[Site "https://www.chess.com"]

[Event "Titled Tuesday Blitz August 09 Early 2022"]
[White "Chernomordik, Pavel"]
[Black "Altman, Joshua"]
[WhiteFideId "2804530"]
[BlackFideId "426210"]
[WhiteElo "2217"]
[BlackElo "1945"]
[Result "0-1"]
[Round "06"]
[TimeControl "180+1"]
[Date "2022.08.09"]
[WhiteClock "0:00:01"]
[BlackClock "0:00:04"]

1. e4 {[%clk 0:02:09]}  e6 {[%clk 0:02:59]} 2. Nc3 {[%clk 0:02:08]}  d5 {[%clk 0:02:59]} 3. d4 {[%clk 0:02:08]}  Nf6 {[%clk 0:02:58]} 4. Bg5 {[%clk 0:02:07]}  dxe4 {[%clk 0:02:59]} 5. Nxe4 {[%clk 0:02:06]}  Nbd7 {[%clk 0:02:59]} 6. Nf3 {[%clk 0:02:05]}  Be7 {[%clk 0:02:59]} 7. Nxf6+ {[%clk 0:02:05]}  Nxf6 {[%clk 0:03:00]} 8. Bd3 {[%clk 0:02:04]}  b6 {[%clk 0:03:00]} 9. Qe2 {[%clk 0:02:03]}  Bb7 {[%clk 0:03:00]} 10. O-O-O {[%clk 0:02:02]}  O-O {[%clk 0:02:56]} 11. Ne5 {[%clk 0:02:01]}  Nd5 {[%clk 0:02:55]} 12. h4 {[%clk 0:01:54]}  Bxg5+ {[%clk 0:02:50]} 13. hxg5 {[%clk 0:01:54]}  Qxg5+ {[%clk 0:02:50]} 14. Kb1 {[%clk 0:01:54]}  h6 {[%clk 0:02:49]} 15. g3 {[%clk 0:01:47]}  Nb4 {[%clk 0:02:42]} 16. Rh5 {[%clk 0:01:43]}  Qf6 {[%clk 0:02:33]} 17. Be4 {[%clk 0:01:41]}  Bxe4 {[%clk 0:02:32]} 18. Qxe4 {[%clk 0:01:41]}  Rad8 {[%clk 0:02:23]} 19. f4 {[%clk 0:01:37]}  c5 {[%clk 0:02:19]} 20. c3 {[%clk 0:01:36]}  Nd5 {[%clk 0:02:15]} 21. Rdh1 {[%clk 0:01:27]}  cxd4 {[%clk 0:02:11]} 22. cxd4 {[%clk 0:01:27]}  Ne7 {[%clk 0:01:52]} 23. g4 {[%clk 0:01:22]}  Ng6 {[%clk 0:01:44]} 24. g5 {[%clk 0:01:14]}  Qxf4 {[%clk 0:01:15]} 25. Qc2 {[%clk 0:00:59]}  Rc8 {[%clk 0:00:54]} 26. Qd1 {[%clk 0:00:33]}  Qe4+ {[%clk 0:00:44]} 27. Ka1 {[%clk 0:00:33]}  Nxe5 {[%clk 0:00:29]} 28. gxh6 {[%clk 0:00:17]}  Ng6 {[%clk 0:00:15]} 29. hxg7 {[%clk 0:00:16]}  Kxg7 {[%clk 0:00:15]} 30. Rh7+ {[%clk 0:00:11]}  Kf6 {[%clk 0:00:15]} 31. Qf1+ {[%clk 0:00:10]}  Ke7 {[%clk 0:00:12]} 32. Qa6 {[%clk 0:00:06]}  Rc7 {[%clk 0:00:08]} 33. Qa3+ {[%clk 0:00:04]}  Kd7 {[%clk 0:00:07]} 34. Rf1 {[%clk 0:00:01]}  Qc6 {[%clk 0:00:03]} 35. Rhxf7+ {[%clk 0:00:01]}  Rxf7 {[%clk 0:00:03]} 36. Rxf7+ {[%clk 0:00:01]}  Kc8 {[%clk 0:00:04]} 0-1


[Site "https://www.chess.com"]

[Event "Titled Tuesday Blitz August 09 Early 2022"]
[White "Dahanayake, Isara Banidu"]
[Black "Simonovic, Miroslav"]
[WhiteFideId "9932631"]
[BlackFideId "919152"]
[WhiteElo "1394"]
[BlackElo "2043"]
[Result "0-1"]
[Round "06"]
[TimeControl "180+1"]
[Date "2022.08.09"]
[WhiteClock "0:00:15"]
[BlackClock "0:01:13"]

1. e4 {[%clk 0:03:00]}  c5 {[%clk 0:02:59]} 2. Nf3 {[%clk 0:03:00]}  Nc6 {[%clk 0:02:59]} 3. Bb5 {[%clk 0:02:59]}  g6 {[%clk 0:02:58]} 4. Bxc6 {[%clk 0:02:59]}  dxc6 {[%clk 0:02:59]} 5. h3 {[%clk 0:02:58]}  Bg7 {[%clk 0:02:59]} 6. d3 {[%clk 0:02:58]}  e5 {[%clk 0:03:00]} 7. O-O {[%clk 0:02:58]}  Ne7 {[%clk 0:03:00]} 8. Nc3 {[%clk 0:02:58]}  h6 {[%clk 0:02:59]} 9. Be3 {[%clk 0:02:58]}  b6 {[%clk 0:02:59]} 10. Qd2 {[%clk 0:02:58]}  Be6 {[%clk 0:02:58]} 11. Nh2 {[%clk 0:02:56]}  Qd7 {[%clk 0:02:57]} 12. f4 {[%clk 0:02:55]}  exf4 {[%clk 0:02:57]} 13. Rxf4 {[%clk 0:02:54]}  O-O {[%clk 0:02:56]} 14. Raf1 {[%clk 0:02:53]}  f5 {[%clk 0:02:54]} 15. R4f2 {[%clk 0:02:38]}  Kh7 {[%clk 0:02:53]} 16. exf5 {[%clk 0:02:04]}  Nxf5 {[%clk 0:02:54]} 17. Ng4 {[%clk 0:01:58]}  h5 {[%clk 0:02:50]} 18. Rxf5 {[%clk 0:01:11]}  Bxf5 {[%clk 0:02:28]} 19. Nh6 {[%clk 0:01:04]}  Rae8 {[%clk 0:02:18]} 20. Bg5 {[%clk 0:00:40]}  c4 {[%clk 0:01:49]} 21. g4 {[%clk 0:00:28]}  hxg4 {[%clk 0:01:37]} 22. hxg4 {[%clk 0:00:28]}  Bxg4 {[%clk 0:01:37]} 23. Rxf8 {[%clk 0:00:20]}  Rxf8 {[%clk 0:01:32]} 24. Qh2 {[%clk 0:00:21]}  Bh5 {[%clk 0:01:26]} 25. Ne4 {[%clk 0:00:19]}  Bxh6 {[%clk 0:01:20]} 26. Bxh6 {[%clk 0:00:17]}  Qg4+ {[%clk 0:01:13]} 27. Kh1 {[%clk 0:00:15]} 0-1


[Site "https://www.chess.com"]

[Event "Titled Tuesday Blitz August 09 Early 2022"]
[White "Delorme, Axel"]
[Black "Thiel, Thomas"]
[WhiteFideId "632023"]
[BlackFideId "4615964"]
[WhiteElo "2474"]
[BlackElo "2250"]
[Result "1-0"]
[Round "06"]
[TimeControl "180+1"]
[Date "2022.08.09"]
[WhiteClock "0:00:06"]
[BlackClock "0:00:18"]

1. d4 {[%clk 0:03:00]}  Nf6 {[%clk 0:02:59]} 2. Nf3 {[%clk 0:03:00]}  g6 {[%clk 0:02:58]} 3. g3 {[%clk 0:03:00]}  Bg7 {[%clk 0:02:57]} 4. Bg2 {[%clk 0:03:01]}  O-O {[%clk 0:02:56]} 5. O-O {[%clk 0:03:01]}  d5 {[%clk 0:02:55]} 6. c4 {[%clk 0:03:01]}  dxc4 {[%clk 0:02:56]} 7. Na3 {[%clk 0:03:01]}  Nc6 {[%clk 0:02:55]} 8. Nxc4 {[%clk 0:03:00]}  Be6 {[%clk 0:02:53]} 9. Nce5 {[%clk 0:02:58]}  Bd5 {[%clk 0:02:52]} 10. Bf4 {[%clk 0:02:50]}  Nh5 {[%clk 0:02:38]} 11. Nxc6 {[%clk 0:02:47]}  bxc6 {[%clk 0:02:35]} 12. Be5 {[%clk 0:02:42]}  Nf6 {[%clk 0:02:31]} 13. b3 {[%clk 0:02:40]}  Qd7 {[%clk 0:02:28]} 14. Rc1 {[%clk 0:02:38]}  Rfd8 {[%clk 0:02:26]} 15. e3 {[%clk 0:02:35]}  a5 {[%clk 0:02:15]} 16. Qc2 {[%clk 0:02:24]}  Be4 {[%clk 0:02:04]} 17. Qc5 {[%clk 0:02:12]}  a4 {[%clk 0:02:01]} 18. Nd2 {[%clk 0:02:06]}  Bxg2 {[%clk 0:01:58]} 19. Kxg2 {[%clk 0:02:06]}  axb3 {[%clk 0:01:56]} 20. axb3 {[%clk 0:02:06]}  Ra6 {[%clk 0:01:48]} 21. Bxf6 {[%clk 0:02:05]}  Bxf6 {[%clk 0:01:42]} 22. h4 {[%clk 0:01:58]}  Qd5+ {[%clk 0:01:30]} 23. Qxd5 {[%clk 0:01:58]}  Rxd5 {[%clk 0:01:30]} 24. Rc4 {[%clk 0:01:40]}  Rb5 {[%clk 0:01:26]} 25. Rfc1 {[%clk 0:01:35]}  Rbb6 {[%clk 0:01:22]} 26. Ne4 {[%clk 0:01:25]}  Kg7 {[%clk 0:01:15]} 27. Ra4 {[%clk 0:00:57]}  h5 {[%clk 0:01:06]} 28. Rca1 {[%clk 0:00:44]}  Rxa4 {[%clk 0:01:05]} 29. bxa4 {[%clk 0:00:45]}  Ra6 {[%clk 0:01:00]} 30. f4 {[%clk 0:00:39]}  Ra5 {[%clk 0:00:57]} 31. Ra2 {[%clk 0:00:37]}  e6 {[%clk 0:00:50]} 32. Kf3 {[%clk 0:00:23]}  Be7 {[%clk 0:00:49]} 33. Ke2 {[%clk 0:00:23]}  f5 {[%clk 0:00:47]} 34. Nd2 {[%clk 0:00:20]}  c5 {[%clk 0:00:42]} 35. Nb3 {[%clk 0:00:20]}  Ra6 {[%clk 0:00:38]} 36. Nxc5 {[%clk 0:00:13]}  Bxc5 {[%clk 0:00:38]} 37. dxc5 {[%clk 0:00:14]}  Kf6 {[%clk 0:00:36]} 38. Kd3 {[%clk 0:00:13]}  Ke7 {[%clk 0:00:36]} 39. Kc4 {[%clk 0:00:13]}  c6 {[%clk 0:00:34]} 40. a5 {[%clk 0:00:10]}  Kd7 {[%clk 0:00:22]} 41. Rd2+ {[%clk 0:00:09]}  Ke7 {[%clk 0:00:21]} 42. Kb4 {[%clk 0:00:08]}  e5 {[%clk 0:00:19]} 43. Rd6 {[%clk 0:00:06]}  exf4 {[%clk 0:00:18]} 44. exf4 {[%clk 0:00:06]} 1-0


[Site "https://www.chess.com"]

[Event "Titled Tuesday Blitz August 09 Early 2022"]
[White "Demchenko, Anton"]
[Black "Vlassov, Nikolai"]
[WhiteFideId "4160258"]
[BlackFideId "4103360"]
[WhiteElo "2539"]
[BlackElo "2324"]
[Result "1-0"]
[Round "06"]
[TimeControl "180+1"]
[Date "2022.08.09"]
[WhiteClock "0:00:19"]
[BlackClock "0:00:31"]

1. Nf3 {[%clk 0:03:00]}  c5 {[%clk 0:02:54]} 2. e4 {[%clk 0:02:58]}  d6 {[%clk 0:02:54]} 3. d4 {[%clk 0:02:57]}  cxd4 {[%clk 0:02:54]} 4. Qxd4 {[%clk 0:02:57]}  e5 {[%clk 0:02:52]} 5. Qe3 {[%clk 0:02:52]}  Nf6 {[%clk 0:02:46]} 6. c4 {[%clk 0:02:52]}  Be7 {[%clk 0:02:46]} 7. Nc3 {[%clk 0:02:52]}  O-O {[%clk 0:02:46]} 8. Be2 {[%clk 0:02:51]}  h6 {[%clk 0:02:30]} 9. O-O {[%clk 0:02:51]}  Be6 {[%clk 0:02:31]} 10. Rd1 {[%clk 0:02:49]}  Nbd7 {[%clk 0:02:31]} 11. b3 {[%clk 0:02:48]}  a6 {[%clk 0:02:30]} 12. Bb2 {[%clk 0:02:37]}  Qc7 {[%clk 0:02:30]} 13. Rac1 {[%clk 0:02:35]}  Rac8 {[%clk 0:02:13]} 14. Nh4 {[%clk 0:02:24]}  Ng4 {[%clk 0:01:58]} 15. Qg3 {[%clk 0:02:24]}  Bxh4 {[%clk 0:01:56]} 16. Qxh4 {[%clk 0:02:22]}  Ngf6 {[%clk 0:01:51]} 17. f3 {[%clk 0:02:17]}  Rfd8 {[%clk 0:01:41]} 18. Qf2 {[%clk 0:02:16]}  Qc5 {[%clk 0:01:35]} 19. Bf1 {[%clk 0:02:09]}  Ne8 {[%clk 0:01:26]} 20. Na4 {[%clk 0:02:06]}  Qxf2+ {[%clk 0:01:26]} 21. Kxf2 {[%clk 0:02:06]}  Nc5 {[%clk 0:01:25]} 22. Nxc5 {[%clk 0:02:00]}  Rxc5 {[%clk 0:01:21]} 23. Rd2 {[%clk 0:01:50]}  f6 {[%clk 0:01:11]} 24. Rcd1 {[%clk 0:01:50]}  Kf7 {[%clk 0:01:08]} 25. Ba3 {[%clk 0:01:42]}  Rc6 {[%clk 0:01:07]} 26. c5 {[%clk 0:01:42]}  f5 {[%clk 0:00:52]} 27. exf5 {[%clk 0:01:39]}  Bxf5 {[%clk 0:00:51]} 28. cxd6 {[%clk 0:01:40]}  b5 {[%clk 0:00:46]} 29. Bb4 {[%clk 0:01:36]}  Ke6 {[%clk 0:00:45]} 30. d7 {[%clk 0:01:30]}  Nf6 {[%clk 0:00:44]} 31. Rd6+ {[%clk 0:01:30]}  Rxd6 {[%clk 0:00:45]} 32. Rxd6+ {[%clk 0:01:31]}  Kf7 {[%clk 0:00:45]} 33. Rxa6 {[%clk 0:01:30]}  Bxd7 {[%clk 0:00:44]} 34. Ra7 {[%clk 0:01:27]}  Ke6 {[%clk 0:00:44]} 35. Ra6+ {[%clk 0:01:06]}  Kf7 {[%clk 0:00:43]} 36. Ra5 {[%clk 0:00:58]}  Rb8 {[%clk 0:00:42]} 37. Bd6 {[%clk 0:00:55]}  Rc8 {[%clk 0:00:42]} 38. Bxe5 {[%clk 0:00:52]}  Rc2+ {[%clk 0:00:42]} 39. Kg1 {[%clk 0:00:51]}  Nd5 {[%clk 0:00:40]} 40. Bxb5 {[%clk 0:00:39]}  Bxb5 {[%clk 0:00:37]} 41. Rxb5 {[%clk 0:00:40]}  Ne3 {[%clk 0:00:37]} 42. Bd4 {[%clk 0:00:18]}  Nxg2 {[%clk 0:00:32]} 43. Bf2 {[%clk 0:00:18]}  Nf4 {[%clk 0:00:31]} 44. Rf5+ {[%clk 0:00:19]} 1-0


[Site "https://www.chess.com"]